bitfinex-derivatives/quotes_ETHF0:USTF0_20251024
["timestamp","ask_amount","ask_price","bid_price","bid_amount"]
[1761284839153,0.80502573,3977.8,3977.7,10.59662121]
[1761284839353,0.47262573,3977.8,3977.7,10.59662121]
[1761284847955,1.07022573,3977.8,3977.7,0.6426]
[1761284848261,1.07022573,3977.8,3977.7,8.907]
[1761284848656,0.9667,3977.2,3977.1,4.66965243]
[1761284848858,0.9667,3977.2,3977.1,13.57665243]
[1761284849053,0.9667,3977.2,3977.1,4.47392121]
[1761284849260,0.9667,3977.2,3977.1,13.10102121]
[1761284849456,0.9667,3977.2,3977.1,13.57140204]
[1761284849757,0.9667,3977.2,3977.1,13.84550204]
[1761284850158,0.7015,3977.2,3977.1,13.84550204]
[1761284850558,0.02502573,3977.8,3977.7,0.8225]
[1761284850860,0.31712573,3977.8,3977.7,10.44152121]
[1761284851059,1.02942573,3977.8,3977.7,10.16742121]
[1761284851759,0.45662573,3977.8,3977.7,10.44152121]
[1761284852558,0.02502573,3977.8,3977.7,10.44152121]
[1761284853064,0.02502573,3977.8,3977.7,11.33913944]
[1761284853369,0.02502573,3977.8,3977.7,10.44152121]
[1761284855863,2.60688427,3978.9,3977.7,10.44152121]
[1761284855864,0.90019534,3978.8,3978.7,1.01081]
[1761284856164,1.65839534,3979.0,3978.9,0.5585]
[1761284856364,1.65839534,3979.0,3978.9,8.906]
[1761284856570,0.7582,3979.0,3978.9,8.906]
[1761284856969,0.76118977,3979.0,3978.9,8.90784135]
[1761284857464,5.76118977,3979.0,3978.9,0.00184135]
[1761284857660,7.11507404,3979.0,3978.9,4.135e-05]
[1761284857862,7.54667404,3979.0,3978.9,4.135e-05]
[1761284858874,2.54667404,3979.0,3978.9,4.135e-05]
[1761284859278,7.54667404,3979.0,3978.9,4.135e-05]
[1761284859779,6.19278977,3979.0,3978.9,4.135e-05]
[1761284860881,1.0044,3977.7,3977.6,0.45243]
[1761284861081,1.0044,3977.7,3977.6,9.35743]
[1761284861781,1.0044,3977.7,3977.6,9.36026653]
[1761284862174,1.0044,3977.7,3977.6,0.45526653]
[1761284862373,1.0044,3977.7,3977.6,9.36026653]
[1761284862577,1.0044,3977.7,3977.6,9.64246653]
[1761284862879,1.0044,3977.7,3977.6,10.35448774]
[1761284863782,1.0044,3977.7,3977.6,10.63078774]
[1761284864577,0.8967,3978.0,3977.9,1.2994]
[1761284864769,0.4316,3978.0,3977.9,2.01142121]
[1761284865478,0.8967,3978.0,3977.9,1.72292121]
[1761284865875,0.8967,3978.0,3977.9,2.01142121]
[1761284867281,0.6046,3978.0,3977.9,2.01142121]
[1761284867685,0.4316,3978.0,3977.9,2.01142121]
[1761284867884,0.4316,3978.3,3978.2,0.847]
[1761284868085,0.4316,3978.3,3978.2,10.46402121]
[1761284868889,1.0044,3978.3,3978.2,9.89922121]
[1761284872284,0.173,3978.0,3977.8,1.01091]
[1761284872590,1.0044,3977.9,3977.8,1.01091]
[1761284872771,1.0044,3977.9,3977.8,9.91591]
[1761284873478,1.0044,3977.9,3977.8,0.2822]
[1761284873684,1.0044,3977.9,3977.8,9.1872]
[1761284873885,1.0044,3977.9,3977.8,8.905]
[1761284875080,0.4316,3977.8,3977.6,0.28503653]
[1761284875287,1.0044,3977.7,3977.6,0.28503653]
[1761284875488,1.0044,3977.7,3977.6,9.19003653]
[1761284875783,1.59266616,3977.7,3977.6,8.90783653]
[1761284875985,1.59266616,3977.7,3977.6,0.00283653]
[1761284878783,6.59266616,3977.7,3977.6,0.00283653]
[1761284878988,0.9905,3976.9,3976.8,0.66022]
[1761284879179,1.57876616,3976.9,3976.8,9.56522]
[1761284879978,1.57876616,3976.9,3976.8,9.35960194]
[1761284880384,1.57876616,3976.9,3976.8,0.45460194]
[1761284881186,1.57876616,3976.9,3976.8,0.87000194]
[1761284881486,1.29806616,3976.9,3976.8,0.87000194]
[1761284881992,1.54046616,3976.9,3976.8,0.87000194]
[1761284882288,1.01986616,3976.9,3976.8,1.07830194]
[1761284883888,1.54046616,3976.9,3976.8,0.20978194]
[1761284884091,1.54046616,3976.9,3976.8,0.00208194]
[1761284884597,1.01986616,3976.9,3976.8,0.41748194]
[1761284884888,1.29806616,3976.9,3976.8,0.41748194]
[1761284887691,0.3641,3977.3,3977.2,0.66018]
[1761284887890,0.8847,3977.3,3977.2,9.61702121]
[1761284888498,0.8847,3977.3,3977.2,10.03242121]
[1761284889189,0.3641,3977.3,3977.2,13.44852121]
[1761284890288,0.3641,3977.4,3977.3,0.86787]
[1761284890890,0.3641,3977.4,3977.3,1.07617]
[1761284891091,0.8847,3977.4,3977.3,0.86787]
[1761284891283,0.8847,3977.4,3977.3,1.57989121]
[1761284893196,0.8847,3977.4,3977.3,1.78819121]
[1761284893499,0.6423,3977.4,3977.3,1.78819121]
[1761284893701,0.3641,3977.4,3977.3,1.78819121]
[1761284894995,0.5206,3977.9,3977.8,0.66011]
[1761284895193,0.5206,3977.9,3977.8,0.86781]
[1761284895390,0.5371,3978.0,3977.9,0.6237]
[1761284895601,0.3641,3978.0,3977.9,3.8315]
[1761284895802,1.8953,3978.3,3978.2,0.6237]
[1761284895996,1.8953,3978.3,3978.2,10.24072121]
[1761284896302,1.8953,3978.3,3978.2,10.48479121]
[1761284896501,1.8953,3978.3,3978.2,10.69309121]
[1761284896702,1.8953,3978.3,3978.2,10.83502989]
[1761284899690,2.47611051,3978.3,3978.2,10.83502989]
[1761284900191,1.22311051,3978.3,3978.2,10.83502989]
[1761284900399,0.58081051,3978.3,3978.2,10.83502989]
[1761284900599,0.94491051,3978.3,3978.2,10.83502989]
[1761284901004,0.94492718,3978.3,3978.2,10.83502989]
[1761284901700,1.22312718,3978.3,3978.2,10.83502989]
[1761284902004,1.46552718,3978.3,3978.2,9.56507]
[1761284902398,1.46552718,3978.3,3978.2,9.35737]
[1761284902599,1.46552718,3978.3,3978.2,8.905]
[1761284903195,0.3641,3978.2,3978.1,0.45237]
[1761284903403,1.46552718,3978.2,3978.1,9.35537]
[1761284904107,1.46552718,3978.2,3978.1,9.56307]
[1761284904701,1.46552718,3978.2,3978.1,9.77077]
[1761284905603,1.46552718,3978.2,3978.1,9.97907]
[1761284905801,0.58082718,3978.2,3978.1,9.97907]
[1761284906002,0.3641,3978.4,3978.3,1.07605]
[1761284906206,0.93117289,3978.4,3978.3,1.93000989]
[1761284907209,0.93117289,3978.4,3978.3,5.13780989]
[1761284907709,0.56707289,3978.4,3978.3,5.13780989]
[1761284908804,1.74208978,3979.5,3978.9,0.6195]
[1761284909110,1.61648978,3979.6,3979.5,0.6141]
[1761284909310,0.2624,3979.6,3979.5,9.3106]
[1761284909610,0.6427,3979.6,3979.5,9.5117]
[1761284909913,0.3824595,3979.6,3979.5,9.71308142]
[1761284910111,0.6448595,3979.6,3979.5,9.71308142]
[1761284911209,3.2078,3980.2,3979.5,9.71308142]
[1761284911210,0.6427,3980.2,3980.1,0.4022]
[1761284911419,0.9049,3980.2,3980.1,9.1031]
[1761284911904,0.9049,3980.2,3980.1,8.902]
[1761284912104,0.90749619,3980.2,3980.1,8.90429178]
[1761284912306,0.90749619,3980.2,3980.1,9.10539178]
[1761284912507,0.90749619,3980.2,3980.1,9.32699178]
[1761284914610,3.3598,3981.0,3980.4,0.2216]
[1761284914816,4.2428,3981.0,3980.9,0.2216]
[1761284915118,0.883,3980.7,3980.6,0.45209]
[1761284915503,0.3782,3980.7,3980.6,1.11689]
[1761284915711,0.00248166,3980.7,3980.6,1.11689]
[1761284915907,0.38068166,3980.7,3980.6,1.11689]
[1761284916107,0.63538166,3980.7,3980.6,0.89529]
[1761284916413,0.38068166,3980.7,3980.6,1.11689]
[1761284916614,0.63538166,3980.7,3980.6,0.89529]
[1761284916813,0.88548166,3980.7,3980.6,9.79529]
[1761284918916,0.38068166,3980.7,3980.6,10.01689]
[1761284919218,0.38068166,3980.7,3980.6,9.79529]
[1761284919520,0.38068166,3980.7,3980.6,10.01689]
[1761284919713,0.38068166,3980.7,3980.6,1.11689]
[1761284920021,0.00248166,3980.7,3980.6,10.01589]
[1761284920520,0.38068166,3980.7,3980.6,10.01589]
[1761284921214,0.63538166,3980.7,3980.6,9.3422]
[1761284921412,0.50728166,3980.7,3980.6,8.899]
[1761284922123,0.6329,3980.3,3980.2,0.89533]
[1761284922421,0.883,3980.3,3980.2,9.79433]
[1761284922720,0.883,3980.3,3980.2,9.3422]
[1761284923031,0.1591,3980.5,3980.2,9.3422]
[1761284923032,0.38068166,3980.7,3980.6,0.2216]
[1761284923204,0.38068166,3980.7,3980.6,9.3422]
[1761284923411,0.38068166,3980.7,3980.6,10.41775989]
[1761284926013,0.38068166,3980.7,3980.6,9.5638]
[1761284927322,0.63538166,3980.7,3980.6,9.3422]
[1761284927621,0.88548166,3980.7,3980.6,9.3422]
[1761284928015,1.44767342,3980.7,3980.6,9.3422]
[1761284928814,1.44767342,3980.7,3980.6,9.5638]
[1761284929618,1.44767342,3980.7,3980.6,9.3422]
[1761284930531,1.19757342,3980.7,3980.6,9.5638]
[1761284930722,1.19757342,3980.7,3980.6,9.3422]
[1761284932019,1.19757342,3980.7,3980.6,9.5638]
[1761284932621,0.94287342,3980.7,3980.6,9.5638]
[1761284933124,0.56467342,3980.7,3980.6,9.5638]
[1761284933828,0.94287342,3980.7,3980.6,9.5638]
[1761284935026,1.44767342,3980.7,3980.6,9.3422]
[1761284937224,1.44767342,3980.7,3980.1,0.22389178]
[1761284937225,0.2547,3980.2,3980.1,0.22389178]
[1761284937430,0.883,3980.2,3980.1,0.00229178]
[1761284937632,0.6329,3979.3,3979.2,0.4432]
[1761284937832,1.19509176,3979.3,3979.2,0.4432]
[1761284938127,0.94039176,3979.3,3979.2,9.76316954]
[1761284938727,0.94039176,3979.3,3979.2,9.76565697]
[1761284939133,1.19509176,3979.3,3979.2,9.76565697]
[1761284942131,0.90139974,3979.9,3979.8,0.90968]
[1761284942331,1.35209961,3980.1,3979.8,0.90968]
[1761284942332,1.65919974,3980.5,3980.4,0.305]
[1761284942729,1.65919974,3980.5,3980.4,0.4575]
[1761284942920,1.40899974,3980.5,3980.4,0.4575]
[1761284943127,0.5076,3980.5,3980.4,0.4575]
[1761284943325,0.7578,3980.5,3980.4,0.305]
[1761284944035,1.0008,3980.5,3980.4,0.305]
[1761284944231,0.5076,3980.5,3980.4,0.4575]
[1761284944632,0.3485,3980.5,3980.4,0.4575]
[1761284945636,0.7377,3980.5,3980.4,0.4575]
[1761284946231,0.9807,3980.5,3980.3,8.898]
[1761284946430,0.7377,3980.0,3979.9,0.305]
[1761284946838,0.7377,3980.0,3979.9,9.202]
[1761284947541,0.9807,3980.0,3979.9,9.202]
[1761284947737,0.9807,3980.0,3979.9,0.305]
[1761284947939,0.3485,3980.4,3980.3,0.1525]
[1761284948134,3.2078,3980.8,3980.3,0.1525]
[1761284948135,1.24989974,3981.1,3981.0,0.4575]
[1761284948435,0.5987,3981.1,3981.0,9.3565]
[1761284949230,1.35209961,3981.6,3981.3,0.1497]
[1761284949429,0.9807,3982.0,3981.9,0.2994]
[1761284949833,0.9807,3982.0,3981.9,9.2274]
[1761284950035,0.3485,3982.0,3981.9,1.30305989]
[1761284950231,3.5563,3982.1,3982.0,0.4491]
[1761284950432,0.022,3982.8,3982.6,0.60157]
[1761284950735,0.022,3982.8,3982.0,0.85593959]
[1761284950736,0.3485,3985.4,3984.4,0.45166]
[1761284951037,0.3485,3985.3,3984.8,2.83596038]
[1761284951228,3.2078,3984.9,3984.5,3.29429968]
[1761284951433,0.3485,3984.5,3984.0,9.049]
[1761284951930,0.3485,3983.3,3983.2,3.2078]
[1761284952128,0.3485,3983.2,3982.7,2.83596038]
[1761284952335,0.3485,3982.7,3982.5,2.83596038]
[1761284952638,0.3485,3982.7,3982.6,12.36505091]
[1761284953044,0.3485,3982.7,3982.6,9.058]
[1761284953231,0.45181,3983.2,3982.6,9.058]
[1761284953232,0.139,3983.4,3982.6,20.65288129]
[1761284953433,0.139,3983.4,3983.2,2.83596038]
[1761284953735,0.139,3983.4,3983.3,9.063]
[1761284955336,0.98994884,3983.4,3983.3,9.063]
[1761284956037,0.3485,3982.7,3982.4,3.2078]
[1761284956339,0.3485,3982.7,3982.1,2.83596038]
[1761284956340,0.3485,3982.7,3982.6,9.064]
[1761284956542,0.85094884,3982.7,3982.6,9.064]
[1761284957341,0.3485,3982.6,3982.0,3.2078]
[1761284957647,0.3485,3982.1,3981.6,3.2078]
[1761284958148,3.3468,3982.2,3981.6,3.2078]
[1761284958149,0.3485,3981.9,3981.6,3.2078]
[1761284958448,0.35068935,3981.9,3981.6,3.21075877]
[1761284958945,0.35068935,3981.9,3981.8,0.45196]
[1761284959144,0.35068935,3981.9,3981.8,2.93730349]
[1761284959448,0.139,3982.8,3982.4,0.45189]
[1761284959647,0.139,3982.8,3982.6,2.48534349]
[1761284960240,0.04181922,3982.8,3982.6,2.48534349]
[1761284961050,3.456,3984.6,3982.8,1.12962]
[1761284961051,0.139,3984.6,3982.8,1.12962]
[1761284961351,0.139,3984.6,3983.9,2.48534349]
[1761284961352,0.4875,3984.0,3983.9,2.48534349]
[1761284961652,0.4875,3984.0,3983.9,11.56634349]
[1761284961942,0.4875,3984.0,3983.9,9.081]
[1761284962144,0.14194816,3984.0,3983.8,3.2078]
[1761284962345,0.3485,3983.9,3983.8,3.2078]
[1761284962549,0.3485,3983.9,3983.8,12.2868]
[1761284962848,0.0485,3983.9,3983.8,12.2868]
[1761284965752,0.55094884,3983.9,3983.8,7.6]
[1761284966050,3.25874884,3983.9,3983.8,7.6]
[1761284967350,0.139,3982.8,3982.7,0.45185]
[1761284967551,0.139,3982.8,3982.7,9.52185]
[1761284968145,0.3485,3983.2,3983.0,0.45181]
[1761284968346,0.7636,3983.8,3983.4,0.45177]
[1761284968642,0.81454884,3983.8,3983.4,0.45177]
[1761284968850,0.7636,3983.7,3983.6,2.93709349]
[1761284969355,0.81454884,3983.7,3983.6,2.48534349]
[1761284969553,0.81454884,3983.7,3983.6,9.28534349]
[1761284970557,0.7636,3983.7,3983.6,9.28534349]
[1761284971052,3.2078,3983.9,3983.7,0.78774]
[1761284971255,0.05094884,3983.8,3983.7,0.78774]
[1761284971448,0.14194816,3984.0,3983.9,0.336]
[1761284971449,0.00294816,3984.0,3983.9,0.336]
[1761284971654,0.00294816,3984.0,3983.9,9.408]
[1761284971953,0.00294816,3984.0,3983.9,16.208]
[1761284972944,0.72124816,3984.0,3983.9,15.872]
[1761284973348,0.00294816,3984.0,3983.9,16.208]
[1761284975052,0.00294816,3984.0,3983.9,21.208]
[1761284975261,0.00294816,3984.0,3983.9,24.4158]
[1761284975445,0.7183,3985.5,3984.9,0.3331]
[1761284975646,0.76924884,3985.4,3985.1,0.3331]
[1761284975951,0.05094884,3985.3,3985.1,0.3331]
[1761284976153,0.05094884,3985.4,3985.2,0.3331]
[1761284976458,0.72134948,3985.4,3985.3,9.068]
[1761284976655,0.72134948,3985.4,3985.3,9.51956]
[1761284976858,0.72134948,3985.4,3985.3,16.2011]
[1761284976859,0.00304948,3985.4,3985.3,16.2011]
[1761284977059,0.77229832,3985.4,3985.3,15.868]
[1761284977463,0.05399832,3985.4,3985.3,15.868]
[1761284977659,0.66735116,3986.3,3985.3,28.1546471]
[1761284977858,0.66735116,3986.3,3985.8,2.81534349]
[1761284978059,0.66735116,3986.3,3986.0,0.33]
[1761284978259,0.022,3987.8,3986.5,0.7153]
[1761284978457,0.022,3987.8,3987.2,0.7153]
[1761284978658,1.33910005,3989.4,3988.9,0.7153]
[1761284978965,3.2078,3989.9,3988.9,3.9231]
[1761284979171,3.2078,3990.4,3989.6,3.2078]
[1761284979460,0.3085,3990.6,3989.7,3.9231]
[1761284979661,0.3085,3990.6,3989.8,0.7153]
[1761284979662,0.00176875,3990.4,3989.8,0.7153]
[1761284979964,0.00176875,3990.4,3989.9,0.7153]
[1761284980259,0.7183,3991.1,3990.2,0.7153]
[1761284980756,0.7183,3990.6,3990.0,2.48534349]
[1761284981068,0.7183,3990.2,3989.7,3.2078]
[1761284981252,0.00219565,3990.2,3990.1,3.2078]
[1761284981454,0.00219565,3990.2,3990.1,3.9231]
[1761284982066,0.00219565,3990.2,3990.1,4.37412]
[1761284982267,0.00219565,3990.2,3990.1,3.9231]
[1761284982466,0.72049565,3990.2,3990.1,3.2078]
[1761284983265,0.72049565,3990.2,3990.1,3.9231]
[1761284983462,0.72049565,3990.2,3990.1,3.2078]
[1761284984058,0.72049565,3990.2,3989.9,9.184]
[1761284984461,0.72049565,3990.2,3989.7,2.48534349]
[1761284985170,0.72049565,3990.2,3989.6,3.21097855]
[1761284985770,0.7183,3989.9,3989.6,3.21097855]
[1761284986070,0.7183,3989.9,3989.6,0.00317855]
[1761284986268,5.00219565,3990.2,3989.6,0.00317855]
[1761284986269,0.00219565,3990.2,3989.8,2.48534349]
[1761284986465,0.00219565,3990.2,3989.6,3.21097855]
[1761284986466,0.00219565,3990.2,3990.1,6.40844349]
[1761284986771,0.72049565,3990.2,3990.1,2.48534349]
[1761284986961,0.72049565,3990.2,3989.7,3.9231]
[1761284987157,0.72049565,3990.2,3989.6,7.91152204]
[1761284987158,0.72049565,3990.2,3989.6,0.00317855]
[1761284987367,0.7183,3989.9,3989.6,0.00317855]
[1761284988374,0.7183,3989.9,3989.7,3.2078]
[1761284988666,0.00219565,3990.2,3989.7,3.2078]
[1761284988667,0.72049565,3990.2,3989.9,0.7153]
[1761284988871,0.72049565,3990.2,3989.9,0.45103]
[1761284989065,0.00219565,3990.2,3990.0,0.7153]
[1761284989566,0.00219565,3990.2,3990.1,3.9231]
[1761284991562,0.00219565,3990.2,3990.1,6.40844349]
[1761284992768,0.72049565,3990.2,3990.1,6.40844349]
[1761284992963,0.72049565,3990.2,3990.1,5.69314349]
[1761284993171,0.72049565,3990.2,3990.1,6.40844349]
[1761284993468,0.00219565,3990.2,3990.1,6.40844349]
[1761284993672,0.00219565,3990.2,3990.1,3.9231]
[1761284993876,0.72049565,3990.2,3990.1,3.2078]
[1761284995475,0.72049565,3990.2,3990.1,3.9231]
[1761284995674,0.72049565,3990.2,3990.1,3.2078]
[1761284996179,0.72049565,3990.2,3989.7,6.40844349]
[1761284996470,0.72049565,3990.2,3989.7,3.9231]
[1761284998374,0.72049565,3990.2,3989.8,0.7153]
[1761284999169,0.72049565,3990.2,3989.9,2.48534349]
[1761284999376,0.00219565,3990.2,3990.1,4.0455]
[1761285000465,0.00219565,3990.2,3989.7,3.2078]
[1761285000466,0.85069565,3990.2,3989.7,3.2078]
[1761285000667,0.8485,3989.9,3989.6,0.00317855]
[1761285001265,0.8485,3989.3,3988.8,3.2078]
[1761285001465,0.8485,3989.3,3988.8,4.0455]
[1761285001668,0.8485,3989.3,3988.9,0.8377]
[1761285002080,0.8485,3989.3,3988.8,5.69314349]
[1761285002382,0.8485,3989.3,3988.8,2.21062881]
[1761285002871,0.8485,3989.3,3988.8,0.00282881]
[1761285003466,0.3426,3990.0,3988.9,0.8377]
[1761285003779,0.3426,3990.0,3988.8,6.0446723]
[1761285003780,0.8485,3989.7,3989.5,0.8377]
[1761285004271,0.00219565,3990.2,3989.5,0.8377]
[1761285004471,0.00219565,3990.2,3989.4,3.5565]
[1761285004472,0.00219565,3990.2,3990.1,0.8377]
[1761285005071,0.85069565,3990.2,3990.1,0.8377]
[1761285006775,0.85069565,3990.2,3990.0,0.45102]
[1761285006981,0.85069565,3990.2,3990.0,1.28872]
[1761285007485,0.85069565,3990.2,3990.1,0.8377]
[1761285007975,0.85069565,3990.2,3989.8,3.2078]
[1761285008175,0.85069565,3990.2,3989.8,3.87114998]
[1761285008376,0.3426,3990.0,3989.8,3.87114998]
[1761285008681,0.3426,3990.0,3989.8,3.2078]
[1761285008682,0.8485,3989.9,3989.8,3.2078]
[1761285009484,0.8485,3989.9,3989.5,0.66427265]
[1761285009672,0.8485,3989.9,3989.4,3.87207265]
[1761285010073,0.85069565,3990.2,3989.8,2.48534349]
[1761285010275,0.3426,3990.0,3989.4,3.87207265]
[1761285010479,0.8485,3989.9,3989.4,3.87207265]
[1761285010974,0.8485,3989.9,3989.4,3.2078]
[1761285011970,0.8485,3989.7,3989.4,3.2078]
[1761285013071,0.8485,3989.3,3988.9,3.2078]
[1761285016270,0.8485,3989.3,3988.8,0.00282881]
[1761285016579,0.8485,3989.2,3988.8,0.00282881]
[1761285017474,0.45114,3989.0,3988.8,0.00282881]
[1761285017674,9.9905,3988.9,3988.8,0.00282881]
[1761285017871,14.9905,3988.9,3988.8,0.00282881]
[1761285018680,14.9905,3988.9,3988.1,0.01125]
[1761285018681,1.64233,3988.2,3988.1,0.01125]
[1761285019079,2.66303,3988.2,3988.1,0.01125]
[1761285019787,7.66303,3988.2,3988.1,0.0143014]
[1761285020377,16.80203,3988.2,3988.1,0.0143014]
[1761285021184,11.80003,3988.2,3988.1,0.4907014]
[1761285021385,11.80003,3988.2,3988.1,0.0143014]
[1761285021386,2.66303,3988.2,3988.1,0.0143014]
[1761285021683,16.80203,3988.2,3988.1,0.0143014]
[1761285024087,11.80203,3988.2,3988.1,0.0143014]
[1761285024378,11.80203,3988.2,3988.1,0.4907014]
[1761285024379,2.66303,3988.2,3988.1,0.4907014]
[1761285024590,2.32043,3988.2,3988.1,1.8804014]
[1761285024882,2.59848,3988.8,3988.5,0.8377]
[1761285024883,1.3207,3988.8,3988.5,0.8377]
[1761285025185,1.8692,3988.6,3988.5,0.4764]
[1761285025384,1.8692,3988.6,3988.5,1.3141]
[1761285025581,0.8485,3989.1,3988.6,0.8377]
[1761285025778,2.32033,3989.1,3989.0,3.6842]
[1761285025985,11.45733,3989.1,3989.0,3.6842]
[1761285026183,11.45633,3989.1,3989.0,5.0739]
[1761285026380,1.8692,3989.1,3989.0,5.0739]
[1761285026977,1.8692,3989.1,3988.6,4.0455]
[1761285027182,1.8692,3989.1,3988.1,0.0143014]
[1761285027183,0.3426,3988.5,3988.1,3.2221014]
[1761285027393,0.8485,3988.4,3988.1,3.2221014]
[1761285027690,0.8485,3988.4,3988.1,0.0143014]
[1761285029377,5.8485,3988.4,3988.1,0.0143014]
[1761285029584,0.8022,3988.3,3988.1,0.0030514]
[1761285029784,3.5504,3988.5,3986.5,1.01297265]
[1761285029785,5.0,3988.2,3986.5,3.87207265]
[1761285029982,0.8022,3986.9,3986.5,3.2078]
[1761285030183,0.8022,3986.9,3985.1,1.34469354]
[1761285030184,0.8022,3986.7,3986.2,3.2078]
[1761285030384,0.8022,3986.7,3986.3,0.8133]
[1761285030385,9.642,3986.7,3986.3,0.8133]
[1761285030695,0.8022,3986.3,3985.7,3.2078]
[1761285030994,0.80464379,3986.3,3985.7,3.21055373]
[1761285031184,9.148,3986.2,3985.8,0.8133]
[1761285031393,9.9502,3986.2,3985.8,0.8133]
[1761285031690,0.00244379,3986.3,3986.2,0.8133]
[1761285032093,0.00244379,3986.3,3985.9,2.83406003]
[1761285032094,0.80464379,3986.3,3985.9,0.8133]
[1761285032291,0.80464379,3986.3,3986.1,3.2078]
[1761285032495,0.00244379,3986.3,3986.2,0.8133]
[1761285033197,0.8022,3986.7,3986.5,0.82112621]
[1761285033396,9.9542,3986.7,3986.5,0.82112621]
[1761285033790,0.8022,3986.6,3986.5,0.82112621]
[1761285034190,0.00305832,3986.6,3986.5,4.02892621]
[1761285036894,0.80525832,3986.6,3986.5,3.21562621]
[1761285037099,0.80525832,3986.6,3986.5,4.02892621]
[1761285037100,0.00305832,3986.6,3986.5,4.02892621]
[1761285037901,0.80525832,3986.6,3986.5,3.21562621]
[1761285038201,0.00305832,3986.6,3986.5,4.02892621]
[1761285038397,0.80525832,3986.6,3986.5,3.21562621]
[1761285039804,0.80525832,3986.6,3986.5,0.00782621]
[1761285041994,2.05825832,3986.6,3986.5,0.00782621]
[1761285042194,5.26605832,3986.6,3986.5,0.00782621]
[1761285045092,14.39405832,3986.6,3986.5,0.00782621]
[1761285045292,2.05825832,3986.6,3986.5,0.82112621]
[1761285045700,0.80525832,3986.6,3986.5,0.82112621]
[1761285046301,0.80525832,3986.6,3986.5,0.00782621]
[1761285046501,4.01305832,3986.6,3986.5,0.00782621]
[1761285048501,5.76605832,3986.6,3986.5,0.00782621]
[1761285048895,10.76605832,3986.6,3986.5,0.00782621]
[1761285049199,11.80695832,3986.6,3986.5,0.00782621]
[1761285049805,8.59915832,3986.6,3986.5,0.00782621]
[1761285050102,3.09915832,3986.6,3986.5,1.88262621]
[1761285050303,2.59595832,3986.6,3986.5,1.88262621]
[1761285050893,3.09915832,3986.6,3986.5,1.88262621]
[1761285051090,3.09915832,3986.6,3986.5,0.54702621]
[1761285051302,3.09915832,3986.6,3986.5,0.00782621]
[1761285051801,12.21615832,3986.6,3986.5,0.00782621]
[1761285052002,12.21615832,3986.6,3986.0,3.2078]
[1761285052003,0.8022,3986.4,3986.1,0.8133]
[1761285052203,1.3399,3986.4,3986.3,0.5392]
[1761285052903,1.3399,3986.4,3986.3,1.8748]
[1761285053904,9.65175832,3986.6,3986.5,1.8748]
[1761285054105,9.65275832,3986.6,3986.5,1.8748]
[1761285054307,0.54075832,3986.6,3986.5,1.8748]
[1761285055211,1.34295832,3986.6,3986.5,1.8748]
[1761285055809,1.84615832,3986.6,3986.5,1.8748]
[1761285056007,1.84615832,3986.6,3986.5,0.5392]
[1761285056201,1.3399,3986.2,3986.1,1.3525]
[1761285057611,1.8431,3986.2,3986.1,1.3525]
[1761285057803,1.8431,3986.2,3985.7,0.54195373]
[1761285058006,0.8022,3986.1,3985.7,0.54195373]
[1761285058297,9.4033,3986.0,3985.7,0.54195373]
[1761285058606,1.8431,3985.8,3985.7,0.00275373]
[1761285058811,2.3431,3985.8,3985.7,0.00275373]
[1761285060603,3.68220005,3985.8,3985.7,0.00275373]
[1761285060809,2.3431,3985.8,3985.7,0.00275373]
[1761285061008,2.3431,3985.8,3985.7,1.65335373]
[1761285061207,11.4411,3985.8,3985.7,1.65335373]
[1761285061807,2.1499134,3986.1,3985.8,0.6686]
[1761285062011,10.3488,3986.1,3986.0,1.6506]
[1761285062210,9.6418,3986.1,3986.0,1.6506]
[1761285062611,9.6418,3986.1,3986.0,4.8584]
[1761285063016,9.098,3986.2,3986.1,1.6506]
[1761285064221,10.3468,3986.2,3986.1,1.6506]
[1761285064409,1.2488,3986.2,3986.1,1.6506]
[1761285064604,1.2488,3986.5,3986.2,0.6686]
[1761285064918,10.3428,3986.5,3986.4,1.6506]
[1761285065112,1.2488,3986.5,3986.4,1.6506]
[1761285065319,0.00305832,3986.6,3986.5,1.9442]
[1761285065511,0.00305832,3986.6,3986.5,0.9622]
[1761285068111,4.1089134,3987.8,3987.2,0.6686]
[1761285068316,4.1089134,3987.8,3987.3,0.6686]
[1761285068614,0.707,3987.7,3987.3,0.6686]
[1761285068812,0.2954,3987.6,3987.2,3.2078]
[1761285069020,0.707,3987.5,3986.9,0.6686]
[1761285069525,1.2488,3987.0,3986.9,1.6506]
[1761285071730,0.707,3986.8,3986.3,3.7039]
[1761285072023,0.707,3986.8,3985.9,0.4961]
[1761285072024,1.9977,3986.0,3985.9,0.4961]
[1761285072225,0.707,3985.8,3985.7,0.00275373]
[1761285072420,0.707,3985.8,3985.0,3.2078]
[1761285073339,0.707,3985.1,3985.0,3.2078]
[1761285073637,0.707,3985.1,3985.0,3.21044061]
[1761285074731,0.707,3985.1,3985.0,0.00264061]
[1761285079136,1.7023,3985.1,3985.0,0.00264061]
[1761285079529,1.9977,3984.6,3984.5,3.2078]
[1761285080336,1.9977,3984.6,3984.5,3.7039]
[1761285080537,2.00087959,3984.6,3984.5,3.21001413]
[1761285082637,2.00087959,3984.6,3984.5,0.00221413]
[1761285083328,0.707,3984.5,3984.1,3.2078]
[1761285083531,1.7023,3984.2,3984.1,3.2078]
[1761285083937,10.7753,3984.2,3984.1,3.2078]
[1761285084434,10.7753,3984.2,3984.1,3.21020501]
[1761285085431,10.7753,3984.2,3984.1,0.00240501]
[1761285087533,1.7023,3983.4,3983.3,3.2078]
[1761285087729,1.7023,3983.4,3982.8,3.72900796]
[1761285087730,1.4843,3982.9,3982.8,3.72900796]
[1761285087944,1.037,3983.3,3983.2,1.4948]
[1761285088238,0.6189,3983.2,3982.9,1.0645]
[1761285088434,0.5,3983.4,3982.9,1.0645]
[1761285088435,1.4843,3983.0,3982.9,1.0645]
[1761285088637,1.7274,3983.0,3982.9,0.00231924]
[1761285089843,1.7274,3983.0,3982.9,0.41821924]
[1761285093645,1.7274,3983.0,3982.9,0.00231924]
[1761285093840,1.7274,3983.0,3981.7,0.19866114]
[1761285093841,1.4932,3982.4,3982.3,3.2078]